Cogmind - Beta 12 @@@ ROGUE MODE // 2023.03.25 @ 16:12:03 Player: btmk16 Result: Destroyed by G-34 Mercenary with Small Laser Performance ------------- Evolutions (0) 0 Regions Visited (1) 200 Robots Destroyed (15) 75 Value Destroyed (360) 360 Prototype IDs (0) 0 Alien Tech Used (0) 0 Bonus (0) 0 TOTAL SCORE: 635 Bonus ------- None Cogmind --------- Core Integrity 0/250 Matter 269/300 Energy 100/100 System Corruption 0% Temperature Cool (12) Movement Core (350) Ox6 Location -10/Materials Parts ------- > --- POWER (1) -------- (None) > --- PROPULSION (2) --- (None) > --- UTILITY (2) ------ Large Storage Unit > --- WEAPON (2) ------- (None) > --- INVENTORY (15) --- Light Ion Engine Aluminum Leg Aluminum Leg Compact Wheel Small Storage Unit Signal Interpreter Seismic Detector Peak State ------------ > --- POWER ------------ Ion Engine > --- PROPULSION ------- Light Treads Light Treads > --- UTILITY ---------- Small Storage Unit Seismic Detector > --- WEAPON ----------- Assault Rifle Assault Rifle > --- INVENTORY -------- Light Ion Engine Aluminum Leg Aluminum Leg Wheel Compact Wheel Light Assault Rifle [Rating: 7] Favorites ----------- Power Ion Engine Engine Ion Engine Propulsion Light Treads Treads Light Treads Wheel Wheel Utility Seismic Detector Device Seismic Detector Storage Large Storage Unit Weapon Assault Rifle Ballistic Gun Assault Rifle Build | -11 -10 ------- Run | Jun Mat Slots Evolved . | . . Power . | . . Propulsion . | . . Utility . | . . Weapon . | . . Parts Attached 12 | 8 4 Power 1 | 1 . Engine 1 | 1 . Core . | . . Reactor . | . . Propulsion 3 | 2 1 Treads 2 | 2 . Leg . | . . Wheel 1 | . 1 Hover . | . . Flight . | . . Utility 4 | 2 2 Device 2 | 1 1 Storage 2 | 1 1 Processor . | . . Hackware . | . . Protection . | . . Artifact . | . . Weapon 4 | 3 1 Energy Gun . | . . Energy Cannon . | . . Ballistic Gun 4 | 3 1 Ballistic Cannon . | . . Launcher . | . . Special Weapon . | . . Impact Weapon . | . . Slashing Weapon . | . . Piercing Weapon . | . . Special Melee Weapon . | . . Unidentified Prototypes . | . . Parts Lost 8 | . 8 Power 1 | . 1 Propulsion 3 | . 3 Utility 1 | . 1 Weapon 3 | . 3 Highest Loss Streak 5 | . 5 To Critical Strikes . | . . Average Slot Usage (%) 94 | . 94 Engine 12 | . 12 Treads 25 | . 25 Wheel 1 | . 1 Device 13 | . 13 Storage 14 | . 14 Ballistic Gun 25 | . 25 Naked Turns . | . . Heaviest Build 30 | 15 30 Greatest Support 40 | 40 40 Greatest Overweight (x) 6 | . 6 Average Overweight (x) . | . . Largest Inventory Capacity 15 | 8 15 Average Capacity 11 | 6 12 Most Carried 9 | 6 9 Average Carried 7 | 4 7 Final Capacity 15 | 8 15 Final Carried 7 | 6 7 Class Distribution -------------------- 100% | Mutant Dominant Class ---------------- Mutant | -10/Materials Resources | -11 -10 ----------- Run | Jun Mat Matter Collected 523 | 236 287 Remotely . | . . Salvage Created 548 | 92 456 Parts 27 | 8 19 Haulers Intercepted . | . . Recyclers Shooed . | . . Parts Field Recycled . | . . Retrieved Matter . | . . Parts Self-Destructed . | . . Prevented . | . . Kills | -11 -10 ------- Run | Jun Mat Combat Hostiles Destroyed 11 | . 11 Guns 11 | . 11 Classes Destroyed 5 | 2 3 Tunneler 1 | 1 . Recycler 1 | 1 . Operator 2 | . 2 Swarmer 3 | . 3 Grunt 8 | . 8 Best Kill Streak 4 | 2 4 Combat Bots Only 4 | . 4 Max Kills in Single Turn 1 | 1 1 Gunslinging . | . . Exploded . | . . Melee . | . . Uniques/NPCs Destroyed . | . . Combat | -11 -10 -------- Run | Jun Mat Damage Taken 1040 | . 1040 Core 255 | . 255 Absorbed by Shields . | . . Core Remaining (%) 100 | 100 . Volleys Fired 65 | 7 58 Largest 2 | 2 2 Hottest 40 | 40 40 Shots Fired 109 | 14 95 Gun 109 | 14 95 Cannon . | . . Launcher . | . . Special . | . . Kinetic 109 | 14 95 Thermal . | . . Explosive . | . . Electromagnetic . | . . Robot Hit Streak 21 | 5 21 Robot Miss Streak 4 | 4 2 Penetration Max . | . . Secondary Targets 1 | . 1 Max Gunslinging Chain 1 | . 1 Shots Hit Robots 75 | 8 67 Core Hits 28 | 3 25 Critical Kills . | . . Critical Parts Destroyed . | . . Critical Strikes . | . . Melee Attacks . | . . Impact . | . . Slashing . | . . Piercing . | . . Sneak Attacks . | . . Combat Hostiles . | . . Follow-up Attacks . | . . Damage Inflicted 890 | 102 788 Guns 882 | 102 780 Cannons . | . . Explosions . | . . Melee . | . . Ramming 8 | . 8 Kinetic 882 | 102 780 Thermal . | . . Explosive . | . . Electromagnetic . | . . Impact . | . . Slashing . | . . Piercing . | . . Highest Corruption . | . . Average Corruption . | . . Corruption Purged . | . . Corruption Blocked . | . . Overload Shots . | . . Overflow Damage . | . . Projectiles . | . . Explosions . | . . Melee . | . . Knockbacks . | . . Impact . | . . Kinetic . | . . Secondary . | . . Self-Inflicted Damage . | . . Shots . | . . Rammed 3 | . 3 Targets Rammed 3 | . 3 Kicked . | . . Crushed . | . . Highest Temperature 13 | . 13 Average Temperature 4 | . 4 Received Heat Transfer 555 | . 555 Siege Activations . | . . Robots Corrupted . | . . Combat Hostiles . | . . Parts Fried . | . . Impact Corruptions . | . . Robots Melted . | . . Combat Hostiles . | . . Parts Melted . | . . Heat Transferred . | . . Parts Sabotaged . | . . Parts Stolen . | . . Parts Stripped . | . . Power Chain Reactions . | . . Missiles Intercepted . | . . Alert | -11 -10 ------- Run | Jun Mat Peak Influence 273 | 10 273 Initial 6 | . 6 Average 89 | 4 106 Maximum Alert Level 1 | . 1 Low Security (%) 84 | 100 81 Level 1 15 | . 18 Level 2 . | . . Level 3 . | . . Level 4 . | . . Level 5 . | . . High Security . | . . Max Security . | . . Squads Dispatched 3 | . 3 Investigation 1 | . 1 Extermination . | . . Reinforcement 2 | . 2 Assault . | . . Garrison . | . . Intercept . | . . Searches Triggered . | . . Construction Impeded . | . . Haulers Reinforced . | . . Active Scanning Responses . | . . Cargo Convoy Interrupts . | . . Stealth | -11 -10 --------- Run | Jun Mat Distress Signals 3 | . 3 Communications Jammed . | . . Distress Signals . | . . Times Spotted 23 | . 23 Peak Tracking Total 6 | . 6 Tactical Retreats 1 | . 1 Traps | -11 -10 ------- Run | Jun Mat Traps Triggered 2 | . 2 Indirectly . | . . Trap Hack Attempts . | . . Triggered . | . . Disarmed . | . . Reprogrammed . | . . Reused . | . . Traps Extracted . | . . Installed . | . . Triggered . | . . Machines | -11 -10 ---------- Run | Jun Mat Machines Disabled . | . . Max in Single Turn . | . . Machines Repaired . | . . Machines Sabotaged . | . . Overloaded Fab Kills . | . . Hacking | -11 -10 --------- Run | Jun Mat Machines Accessed 2 | . 2 Terminals 2 | . 2 Fabricators . | . . Repair Stations . | . . Recycling Units . | . . Scanalyzers . | . . Garrison Access . | . . Total Hacks 4 | . 4 Successful 1 | . 1 Failed 3 | . 3 Catastrophic 1 | . 1 Database Lockouts . | . . Manual 4 | . 4 Terminals 4 | . 4 Fabricators . | . . Repair Stations . | . . Recycling Units . | . . Scanalyzers . | . . Garrison Access . | . . Terminal Hacks . | . . Fabricator Hacks . | . . Repair Station Hacks . | . . Recycling Unit Hacks . | . . Scanalyzer . | . . Garrison Access Hacks . | . . Unauthorized Hacks 1 | . 1 Terminals 1 | . 1 Operators 1 | . 1 Fabricators . | . . Repair Stations . | . . Recycling Units . | . . Scanalyzers . | . . Garrison Access . | . . Data Cores Recovered . | . . Used . | . . Hacking Detections 2 | . 2 Full Trace Events . | . . Feedback Events . | . . Feedback Blocked . | . . Robot Schematics Acquired . | . . Robots Built . | . . Authchips . | . . Time . | . . Total Robot Build Rating . | . . Part Schematics Acquired . | . . Parts Built . | . . Authchips . | . . Time . | . . Total Part Build Rating . | . . Parts Repaired . | . . Time . | . . Parts Recycled . | . . Recycled Matter . | . . Retrieved Matter . | . . Retrieved Components . | . . Parts Scanalyzed . | . . Part Schematics Acquired . | . . Parts Damaged . | . . Bothacking | -11 -10 ------------ Run | Jun Mat Used RIF Installer . | . . Robots Hacked . | . . Non-combat . | . . Combat . | . . Robot Hacks Applied . | . . Relay Couplers Released . | . . Fabnet Peak Effective % . | . . Robots Rewired . | . . Allies Hacked . | . . Hacks Repelled . | . . Allies | -11 -10 -------- Run | Jun Mat Total Allies . | . . Largest Group . | . . Highest-Rated Group . | . . Highest-Rated Ally . | . . Total Orders . | . . Ally Attacks . | . . Total Damage . | . . Kills . | . . Allies Corrupted . | . . Allies Melted . | . . Intel | -11 -10 ------- Run | Jun Mat Robot Analysis Total . | . . Derelict Logs Recovered . | . . Drone Launches . | . . Drone Recoveries . | . . Exploration | -11 -10 ------------- Run | Jun Mat Turns Passed 714 | 118 596 Spaces Moved 292 | 52 240 Core 5 | 2 3 Treads 267 | 50 217 Legs . | . . Wheels 20 | . 20 Hover . | . . Flight . | . . Fastest Speed 50 | 50 110 Average Speed 158 | 155 159 Slowest Speed 350 | 160 350 Overloaded Moves . | . . Propulsion Burnouts . | . . Robots Hopped . | . . Cave-ins Triggered . | . . Exploration Rate (%) 26 | 4 49 Regions Visited 1 Branch Regions . Pre-discovered Areas . | . . Known Exits Taken . | . . Unknown Exits Taken 1 | 1 . Scrap Searched . | . . Spaces Dug . | . . Terrain Destroyed . | . . Melee . | . . Projectile . | . . AOE . | . . Terrain Rammed . | . . Walls Destroyed . | . . Machines Disabled . | . . Actions | -11 -10 --------- Run | Jun Mat Total 430 | 71 359 Wait 52 | . 52 Move 291 | 51 240 Hop . | . . Pick Up 6 | 5 1 Fast Attach 8 | 7 1 Attach 2 | . 2 Detach 1 | . 1 Swap 2 | 1 1 Drop . | . . Fire 65 | 7 58 Melee . | . . Ram . | . . Kick . | . . Crush 3 | . 3 Escape Stasis . | . . Rewire . | . . Trap . | . . Miscellaneous . | . . Route ------- -11/Junkyard -10/Materials (discovered 2 exits: [*Mat] / [*Min]) History --------- Turn | Location | Event 36 | -11/Junkyard | Discovered new exit (range 15) 119 | -11/Junkyard | Entered Materials 330 | -10/Materials | Build established: Mutant 372 | -10/Materials | Discovered new exit (range 12) 545 | -10/Materials | Discovered new exit (range 11) 655 | -10/Materials | Lost 3 parts (1n2w) 707 | -10/Materials | Core integrity fell below 50% 714 | -10/Materials | Core integrity fell below 20% 715 | -10/Materials | Destroyed by G-34 Mercenary with Small Laser Last Messages --------------- 00633_ K-01 Serf collects debris. 00637_ R-06 Scavenger collects Lgt. Ion Engine. 00638_ K-01 Serf collects debris. 00649_ R-06 Scavenger inserts Sml. Matter Pod into recycling unit. 00652_ U-05 Engineer builds a Wall. 00652_ R-06 Scavenger inserts Wheel into recycling unit. 00655_ R-06 Scavenger inserts Lgt. Ion Engine into recycling unit. 00658_ Ion Engine destroyed. 00658_ R-06 Scavenger inserts Lgt. Ion Engine into recycling unit. 00674_ Wheel destroyed. 00682_ G-34 Mercenary destroyed. 00690_ R-06 Scavenger collects Ion Engine. 00691_ Lgt. Assault Rifle destroyed. 00691_ Slammed into G-34 Mercenary. 00702_ K-01 Serf collects debris. 00704_ Lgt. Treads destroyed. 00705_ Structural Scanner destroyed. 00706_ K-01 Serf collects debris. 00709_ K-01 Serf cleans the Recycling Unit. 00715_ K-01 Serf collects debris. Map ----- +----------------------------------------------------+ | ?? ?# ?????????# ## ???????????????????? | | ??# #?# ????????## #####+##????????????????? | | ??# #?# ????????## +????????????????? | | ??# #?# ????????## # ???????????? | | ### #?# ????????## ####+#???????????? | | ## ### ?????????# ???????????? | | # ##+###???????# ???????????? | | [#=* ######### ???????????? | | =+=* ##???## ##???????????? | | *#% %[= ########## ##??? # ##???????????? | | [# ##"##### # ##??? # ##???????????? | | ## ##! [ # # ##??? # ##???????????? | | ## ##* """ # # ##??? # ##???????????? | | ### ## """ # # ##??? # ##???????????? | | ??# + """ # + ##??? # ##???????????? | | ??# ## # # ##??? # ##???????????? | | ??# ## =# =! ## ####??? # ##???????????? | | ### ### T"### =!!## ####??? # ######???????? | | #?#"""### =!!## ######### ######???????? | | #?####?## ## ######### ]]##???????? | | " #??????## ## ######### ]]##???????? | | """ #??????## ## % ^ ]]##???????? | | """ #??????## + ]]##???????? | | """ #??????########## r "" ! !!##???????? | | "" #??################/## T" !!##???????? | | """ ##? #??## @ # % "" ######???????? | | "" # ! #??## # ???????? | | """ # #??##ggg # ????????? | | " + #??## "Y" # ???????? | | # #??## """ # """ ######???????? | | # #??## kk # """ ######???????? | | ########? #??######### """ ##???????????? | | ????????? #??## T # # ???????????? | | ?????????? #????????? + ?? #??????????? | | ??????????#######????????? # ""?? # #??????????? | | ?????????????????????????? # ""?? ###??????????? | | #######??????????????????? # "?????????????????? | | #??????????????????? # ?????????????????? | | """ #???????????????????## ??????????????????? | | R" #???????????????????## ??????????????????? | | """ #??????????????????????????????????????????? | | #??????????????????????????????????????????? | | """" #??????????????????????????????????????????? | | """" #??????????????????????????????????????????? | | """" #??????????????????????????????????????????? | | #??????????????????????????????????????????? | | +######??????????????????????????????????????????? | | #??????????????????????????????????????????? | | #??????????????????????????????????????????? | | #??????????????????????????????????????????? | +----------------------------------------------------+ Best States ------------- Heat Dissipation 25 Energy Generation 10 Energy Capacity 250 Matter Stores 290 Matter Capacity 300 Sight Range 16 Terrain Scan Density 10 Evasion (%) 40 Recoil Reduction 2 Item Schematics ----------------- None Robot Schematics ------------------ None Fabricated ------------ Nothing Alien Tech Used ----------------- None Achievements -------------- None Challenges ------------ None Game ------ Seed CatalystFusionShifter Manual? 0 Play Time 00:10:41 Cumulative 589.5 hours Start 2023.03.25 @ 00:28:00 End 2023.03.25 @ 16:12:03 Sessions 1 Manual Loads 0 Difficulty Rogue Special Mode None Game No. 620 Rogue 619 Adventurer 0 Explorer 1 Win Type - Total 28 Types 20/0/5/3/0/0/0/0/0 Lore% 84 Gallery% 91 Achievement% 77 Wizard Run 0 Options --------- ASCII 0 Keyboard 1 Movement Vi Keybinds 0 Fullscreen 1 Font 18/SmallcapsGlow Map View 76x50 Tactical HUD 1 Map Filters NONE Filters NONE Steam 1 RUN: 566d99c9-0c1a-43ba-ba82-0f650d115042